Cogmind - Beta 16.1 @@@ ROGUE MODE // 2026.04.15 @ 12:26:59 Player: Chair Result: Escaped! Performance ------------- Evolutions (9) 4500 Regions Visited (13) 2600 Robots Destroyed (264) 1320 Value Destroyed (9738) 9738 Prototype IDs (22) 440 Alien Tech Used (0) 0 Bonus (3552) 3552 TOTAL SCORE: 22150 Bonus ------- High Alert Combat Kills 457 Follower Combat Kills 95 Win 3000 Cogmind --------- Core Integrity 146/1600 Matter 104/300 Energy 95/100 System Corruption 0% Temperature Cool (8) Movement Hovering (66) Location To Epsilon Eridani Parts ------- > --- POWER (3) -------- (None) > --- PROPULSION (7) --- Improved Gyrokinetic Inverter Improved Gyrokinetic Inverter > --- UTILITY (10) ----- Improved Terrain Scan Processor Advanced Launcher Guidance Computer > --- WEAPON (5) ------- (None) > --- INVENTORY (5) ---- (None) Peak State ------------ > --- POWER ------------ Singularity Reactor > --- PROPULSION ------- Compact Wheel Armored Huge Wheel Centrium Wheel > --- UTILITY ---------- Advanced Heat Sink Improved Cooling System Advanced Cooling System Huge Storage Unit Advanced Signal Interpreter Advanced Target Analyzer Layered Heavy Armor Plating Improved Remote Force Field > --- WEAPON ----------- High-powered Field Laser Variable Charge Gun Quantum Rifle KE Penetrator Nanosword > --- INVENTORY -------- Reinforced Fission Core Particle Reactor Light Particle Reactor Improved Heavy Siege Treads Advanced Heat Sink Advanced Heat Sink Matter Compressor Advanced Sensor Array Improved Target Analyzer Hardened Heavy Armor Plating Hardened Heavy Armor Plating Graphene Brace Experimental Hacking Suite Improved System Guard Wave Gun Advanced Variable Charge Gun Compact Tesla Bomb Launcher Compact Tesla Bomb Launcher Compact Tesla Bomb Launcher Compact Tesla Bomb Launcher Advanced Datajack Nanosword [Rating: 143] Favorites ----------- Power Cooled Deuterium Engine Engine Cooled Deuterium Engine Power Core Reinforced Fission Core Reactor Singularity Reactor Propulsion Armored Wheel Treads Light Treads Leg Aluminum Leg Wheel Armored Wheel Hover Unit Improved Gyrokinetic Inverter Flight Unit Impulse Thruster Array Utility High-capacity Storage Unit Device Advanced Heat Sink Storage High-capacity Storage Unit Processor Advanced Targeting Computer Hackware Hacking Suite Protection Hardened Heavy Armor Plating Weapon Precision Assault Rifle Energy Gun High-powered Field Laser Energy Cannon Nova Cannon Ballistic Gun Precision Assault Rifle Ballistic Cannon Enhanced Hardcell Cannon Launcher Compact Tesla Bomb Launcher Impact Weapon Heavy Hammer Slashing Weapon Nanosword Special Melee Weapon Datajack Build | -11 -10 -10 -9 -9 -8 -7 -7 -6 -5 -4 -3 -2 -1 ------- Run | Yrd Mat Min Mat Min Mat Fac Sto Fac Fac Fac Res Res Acc Slots Evolved 18 | . . . 2 . 2 2 . 2 2 2 2 2 2 Power 2 | . . . . . . . . 1 . 1 . . . Propulsion 5 | . . . . . . . . . 1 1 . 2 1 Utility 8 | . . . 1 . 2 1 . 1 1 . 1 . 1 Weapon 3 | . . . 1 . . 1 . . . . 1 . . Parts Attached 172 | 7 22 . 10 . 10 18 2 5 23 17 42 13 3 Power 19 | 1 2 . 1 . . 1 . 1 4 3 3 2 1 Engine 7 | 1 1 . 1 . . 1 . 1 2 . . . . Core 8 | . 1 . . . . . . . 2 3 . 1 1 Reactor 4 | . . . . . . . . . . . 3 1 . Propulsion 27 | 2 7 . 2 . . 2 . . 1 2 8 3 . Treads 4 | 2 . . 2 . . . . . . . . . . Leg 5 | . 5 . . . . . . . . . . . . Wheel 14 | . 2 . . . . 2 . . 1 2 7 . . Hover 2 | . . . . . . . . . . . . 2 . Flight 2 | . . . . . . . . . . . 1 1 . Utility 70 | 1 7 . 2 . 5 9 1 2 9 9 17 6 2 Device 32 | . 3 . . . 2 3 1 2 5 5 8 1 2 Storage 7 | 1 3 . . . . 1 . . . 1 1 . . Processor 13 | . . . . . 1 1 . . 1 2 4 4 . Hackware 3 | . . . . . . . . . 1 . 1 1 . Protection 15 | . 1 . 2 . 2 4 . . 2 1 3 . . Artifact . | . . . . . . . . . . . . . . Weapon 56 | 3 6 . 5 . 5 6 1 2 9 3 14 2 . Energy Gun 16 | 1 1 . 1 . 1 2 1 1 5 1 2 . . Energy Cannon 3 | . . . 1 . . . . . . . 1 1 . Ballistic Gun 22 | 2 5 . 2 . 2 4 . . 2 . 5 . . Ballistic Cannon 1 | . . . . . . . . . . . . 1 . Launcher 6 | . . . . . 1 . . . . 2 3 . . Special Weapon . | . . . . . . . . . . . . . . Impact Weapon 1 | . . . 1 . . . . . . . . . . Slashing Weapon 6 | . . . . . . . . 1 2 . 3 . . Piercing Weapon . | . . . . . . . . . . . . . . Special Melee Weapon 1 | . . . . . 1 . . . . . . . . Unidentified Prototypes 18 | . . . 3 . 1 2 1 1 2 . 8 . . Parts Lost 46 | . . . . . . 2 . . 8 1 23 3 9 Power 3 | . . . . . . . . . 1 . 1 . 1 Propulsion 12 | . . . . . . 1 . . 1 . 8 1 1 Utility 22 | . . . . . . 1 . . 4 1 7 2 7 Weapon 9 | . . . . . . . . . 2 . 7 . . Highest Loss Streak 9 | . . . . . . 1 . . 4 1 7 1 9 To Critical Strikes 1 | . . . . . . . . . . . 1 . . Average Backups 16 | 3 9 20 19 20 19 19 17 16 16 15 19 4 3 Power 1 | . . 1 1 1 1 1 1 . . 1 2 . . Propulsion 1 | 2 3 6 6 6 3 2 2 1 . . . . 1 Utility 7 | . 2 6 6 7 6 8 7 8 8 8 9 1 . Weapon 6 | . 3 7 6 6 8 6 6 6 7 5 6 2 . Tool/Special . | . . . . . . . . . . . . . . Unused Backups 52 | . 7 . 2 . 8 10 4 3 2 . 10 5 1 Power 3 | . 1 . . . 1 1 . . . . . . . Propulsion 9 | . 2 . . . 3 1 1 1 . . 1 . . Utility 23 | . 2 . 2 . 1 7 1 1 1 . 5 3 . Weapon 16 | . 2 . . . 3 1 2 1 1 . 3 2 1 Tool/Special 1 | . . . . . . . . . . . 1 . . Average Slot Usage (%) 85 | . 94 100 99 100 99 95 83 84 86 84 73 40 37 Engine 5 | . 5 14 11 11 9 7 7 11 9 . . . . Core 2 | . 8 . . . . . . . 1 15 . . . Treads 1 | . 12 . 2 . . . . . . . . . . Wheel 11 | . 4 28 19 22 18 12 7 6 9 11 12 . . Device 11 | . 6 . 11 11 15 11 6 13 11 12 17 1 2 Storage 6 | . 14 14 11 11 9 7 7 6 5 5 3 . . Processor 10 | . . . . . 9 14 15 13 15 11 8 20 22 Protection 6 | . 2 14 11 11 11 7 7 6 5 5 3 . . Energy Gun 9 | . 3 14 11 11 9 8 7 5 7 18 14 . . Ballistic Gun 13 | . 24 14 21 22 16 21 22 20 12 1 4 . . Peak Build Rating 143 | 6 17 16 24 24 37 56 60 71 87 102 143 97 70 Average Rating 66 | 4 10 16 21 24 33 49 59 66 75 93 121 66 64 On Entrance 41 | . 6 16 16 24 24 37 55 60 68 84 102 35 56 Avg Prop Armor Cover (%) 3 | . . . . . . . . . . . 1 3 . Naked Turns 36 | . . . . . . . . . . . 36 . . Heaviest Build 196 | 13 60 60 64 61 68 88 89 106 109 175 196 18 28 Greatest Support 60 | 40 40 24 40 24 24 28 28 28 40 54 60 29 24 Greatest Overweight (x) 12 | . 2 2 2 2 2 3 3 3 8 4 12 . 1 Average Overweight (x) 1 | . . 2 1 2 2 2 3 3 2 2 2 . . Largest Inventory Capacity 25 | 8 20 20 20 20 20 20 20 20 20 25 25 5 5 Average Capacity 19 | 6 10 20 20 20 20 20 20 20 20 21 23 5 5 Most Carried 25 | 5 20 20 20 20 20 20 20 20 20 22 25 5 5 Average Carried 18 | 3 9 20 19 20 19 19 20 19 19 19 22 4 4 Final Capacity 25 | 8 20 20 20 20 20 20 20 20 20 25 5 5 5 Final Carried 22 | 5 20 20 20 20 20 20 20 20 20 22 5 5 . Class Distribution -------------------- 45% | Gunner 19% | Mutant 12% | Tank 10% | Scavenger-Tank 4% | Scavenger-Gunner 4% | Skirmisher Dominant Class ---------------- Mutant | -10/Materials Mutant | -10/Mines Tank | -9/Materials Tank | -9/Mines Gunner | -8/Materials Gunner | -7/Factory Gunner | -7/Storage Gunner | -6/Factory Gunner | -5/Factory Skirmisher | -4/Factory Scavenger-Tank | -3/Research Mutant | -2/Research Mutant | -1/Access Resources | -11 -10 -10 -9 -9 -8 -7 -7 -6 -5 -4 -3 -2 -1 ----------- Run | Yrd Mat Min Mat Min Mat Fac Sto Fac Fac Fac Res Res Acc Matter Collected 8130 | 280 636 138 466 . 942 773 257 530 1694 516 1635 233 30 Remotely . | . . . . . . . . . . . . . . Salvage Created 13085 | 81 714 105 666 . 1306 1099 293 452 3016 1137 4214 . 2 Parts 628 | 3 54 3 30 . 72 68 13 11 146 48 178 . 2 Haulers Intercepted 15 | . 2 . 4 . 2 1 . 1 2 1 2 . . Recyclers Shooed 7 | . 1 . 1 . . . . . 2 . 3 . . Parts Field Recycled . | . . . . . . . . . . . . . . Retrieved Matter . | . . . . . . . . . . . . . . Parts Self-Destructed . | . . . . . . . . . . . . . . Prevented . | . . . . . . . . . . . . . . Parts Restored . | . . . . . . . . . . . . . . Kills | -11 -10 -10 -9 -9 -8 -7 -7 -6 -5 -4 -3 -2 -1 ------- Run | Yrd Mat Min Mat Min Mat Fac Sto Fac Fac Fac Res Res Acc Combat Hostiles Destroyed 166 | . 14 3 8 . 21 22 4 3 33 17 41 . . Guns 152 | . 14 3 8 . 21 22 4 3 32 9 36 . . AOE 7 | . . . . . . . . . . 5 2 . . Classes Destroyed 18 | 2 4 1 2 . 4 2 . . 2 . 1 . . Worker 20 | . . . . . . 1 . . 2 . 17 . . Builder 17 | . . . . . 1 . . . 8 2 6 . . Tunneler 6 | 1 . . . . . 1 . . 1 1 1 . 1 Hauler 15 | . 2 . 4 . 2 1 . 1 2 1 2 . . Recycler 21 | 1 3 . 2 . 3 . 1 1 4 2 4 . . Mechanic 4 | . . . 1 . . 1 . . . 1 1 . . Operator 3 | . . . . . 3 . . . . . . . . Watcher 13 | . 1 . 2 . . 1 . 1 4 1 3 . . Swarmer 32 | . 6 . 4 . 4 7 . . 5 5 1 . . Grunt 59 | . 8 2 3 . 11 5 3 . 15 . 12 . . Brawler 1 | . . . . . . . . . . . 1 . . Duelist 2 | . . . . . 1 1 . . . . . . . Sentry 16 | . . . 1 . 4 4 1 . 2 1 3 . . Specialist 3 | . . . . . . . . . 2 . 1 . . Hunter 20 | . . . . . 1 1 . 1 7 4 6 . . Programmer 30 | . . . . . . 4 . 2 1 7 16 . . Heavy 2 | . . . . . . . . . 1 . 1 . . Assembled 1 | . . 1 . . . . . . . . . . . Best Kill Streak 15 | 2 4 2 6 . 5 6 3 1 8 15 11 . 1 Combat Bots Only 10 | . 4 2 3 . 4 5 2 1 5 10 5 . . Max Kills in Single Turn 5 | 1 1 1 2 . 2 2 1 1 2 3 5 . 1 Gunslinging 1 | . . . 1 . 1 1 . . 1 1 1 . . Exploded 2 | . . . . . . . . . . 2 2 . . Melee . | . . . . . . . . . . . . . . Uniques/NPCs Destroyed . | . . . . . . . . . . . . . . Combat | -11 -10 -10 -9 -9 -8 -7 -7 -6 -5 -4 -3 -2 -1 -------- Run | Yrd Mat Min Mat Min Mat Fac Sto Fac Fac Fac Res Res Acc Hostile Shots Fired 1747 | . 71 6 23 . 58 97 22 31 217 113 864 75 170 Missed 652 | . 17 3 7 . 26 40 6 6 51 32 376 41 47 Hits 1095 | . 54 3 16 . 32 57 16 25 166 81 488 34 123 Melee 5 | . . . . . . . . . . . 4 1 . Projectile 1090 | . 54 3 16 . 32 57 16 25 166 81 484 33 123 Critical Strikes 35 | . . . . . 1 1 . 1 5 8 16 . 3 Actively Blocked 2 | . . . . . . . . . . . 2 . . Part Disruptions 7 | . . . . . . . . . 1 1 5 . . Damage Taken 14729 | . 666 69 178 . 412 609 146 233 2427 1428 5649 751 2161 Core 3343 | . 131 . 10 . 22 90 5 . 227 216 805 383 1454 Absorbed by Shields 3271 | . . . . . . . . 123 860 95 2193 . . Regen/Repaired (Parts) 281 | . . . . . 18 . . . 159 104 . . . Core Remaining (%) 73 | 100 . 47 . 97 96 . 86 100 77 81 38 73 9 Volleys Fired 501 | 5 65 16 38 . 62 38 11 12 93 36 110 5 10 Largest 5 | 2 2 2 3 . 3 4 4 4 4 4 5 1 1 Hottest 353 | 40 88 88 111 . 119 199 154 154 254 296 353 113 58 Shots Fired 1694 | 10 130 30 114 . 178 146 43 47 363 110 508 5 10 Gun 1663 | 10 130 30 114 . 176 146 43 47 363 101 503 . . Cannon 15 | . . . . . . . . . . . . 5 10 Launcher 16 | . . . . . 2 . . . . 9 5 . . Special . | . . . . . . . . . . . . . . Kinetic 919 | 10 126 16 76 . 120 104 33 36 252 2 133 1 10 Thermal 759 | . 4 14 38 . 56 42 10 11 111 99 370 4 . Explosive 11 | . . . . . 2 . . . . 9 . . . Electromagnetic 5 | . . . . . . . . . . . 5 . . Robot Hit Streak 29 | 4 8 4 11 . 18 23 13 11 29 19 20 . 1 Robot Miss Streak 6 | 2 4 2 6 . 4 2 1 1 2 3 3 . 2 Penetration Max 2 | . . . . . . . . . 1 . 2 . . Secondary Targets 35 | . 4 . 1 . 4 2 . . 7 2 15 . . Max Gunslinging Chain 2 | . 1 . 1 . 1 1 . . 2 1 2 . . Shots Hit Robots 1107 | 5 78 14 68 . 113 91 30 29 265 70 342 . 2 Core Hits 514 | 3 37 6 20 . 50 61 10 14 120 50 143 . . Critical Kills 7 | . . . . . . 1 . . 2 . 4 . . Critical Parts Destroyed 9 | . . . . . . . 1 . 3 . 5 . . Critical Strikes 52 | . . . 3 . 2 2 2 3 8 4 28 . . Burn 36 | . . . 3 . 2 1 1 3 3 4 19 . . Destroy 16 | . . . . . . 1 1 . 5 . 9 . . Melee Attacks 83 | . . . 2 . 11 6 . 7 16 7 34 . . Impact 18 | . . . 2 . 10 6 . . . . . . . Slashing 64 | . . . . . . . . 7 16 7 34 . . Piercing . | . . . . . . . . . . . . . . Sneak Attacks 7 | . . . 1 . 1 . . . . . 5 . . Combat Hostiles . | . . . . . . . . . . . . . . Follow-up Attacks . | . . . . . . . . . . . . . . Damage Inflicted 27935 | 61 880 264 1127 . 2006 2037 596 623 5979 3034 11237 . 91 Guns 25061 | 61 876 230 1050 . 2006 2037 596 623 5932 1814 9836 . . Cannons 85 | . . . . . . . . . . . . . 85 Explosions 2061 | . . . . . . . . . . 1220 841 . . Melee 683 | . . . 77 . . . . . 47 . 559 . . Ramming 45 | . 4 34 . . . . . . . . 1 . 6 Kinetic 11985 | 61 842 106 659 . 1299 1202 439 447 3898 20 2927 . 85 Thermal 13161 | . 34 124 391 . 707 835 157 176 2034 1794 6909 . . Explosive 1220 | . . . . . . . . . . 1220 . . . Electromagnetic 841 | . . . . . . . . . . . 841 . . Impact 77 | . . . 77 . . . . . . . . . . Slashing 606 | . . . . . . . . . 47 . 559 . . Piercing . | . . . . . . . . . . . . . . Highest Corruption 21 | . 3 3 . . . . . . 1 2 21 . . Average Corruption 6 | . 2 3 . . . . . . 1 1 9 . . Corruption Purged 2 | . . . . . . . . . . 2 . . . Corruption Blocked 2 | . . . . . . . . . . . . . 2 Effects 89 | . 18 3 . . . . . . 2 3 63 . . Message Errors 25 | . 5 1 . . . . . . . . 19 . . Matter Fused 17 | . 4 . . . . . . . . 1 12 . . Heat Flow Errors 9 | . 2 1 . . . . . . . . 6 . . Energy Discharges 9 | . 3 . . . . . . . 1 . 5 . . Parts Rejected 3 | . 1 . . . . . . . . . 2 . . Data Loss (minor) 7 | . 1 . . . . . . . . 1 5 . . Data Loss (major) 5 | . 2 . . . . . . . 1 . 2 . . Misfires 1 | . . 1 . . . . . . . . . . . Alerts 2 | . . . . . . . . . . 1 1 . . Misdirections 2 | . . . . . . . . . . . 2 . . Weapon Failures 9 | . . . . . . . . . . . 9 . . Overload Shots . | . . . . . . . . . . . . . . Overflow Damage 379 | . . . 37 . . . . . . 33 284 . 25 Projectiles 25 | . . . . . . . . . . . . . 25 Explosions 44 | . . . . . . . . . . 33 11 . . Melee 310 | . . . 37 . . . . . . . 273 . . Knockbacks 2 | . . 1 . . . . . . . . . . 1 Impact 1 | . . 1 . . . . . . . . . . . Kinetic 1 | . . . . . . . . . . . . . 1 Secondary . | . . . . . . . . . . . . . . Self-Inflicted Damage 29 | . . 17 . . 9 . . . . . . . 3 Shots 1 | . . . . . 1 . . . . . . . . Rammed 6 | . 2 1 . . . . . . . . 1 . 2 Targets Rammed 6 | . 2 1 . . . . . . . . 1 . 2 Kicked . | . . . . . . . . . . . . . . Crushed . | . . . . . . . . . . . . . . Highest Temperature 387 | . 223 335 81 . 149 285 88 180 314 387 337 48 . Average Temperature 76 | . 44 173 36 . 53 73 38 50 89 113 62 16 . Received Heat Transfer 1499 | . 279 24 51 . 153 168 60 . 196 26 407 135 . Effects 9 | . . . . . . 3 . . 5 1 . . . Shutdowns 1 | . . . . . . . . . 1 . . . . Interference 8 | . . . . . . 3 . . 4 1 . . . Siege Activations . | . . . . . . . . . . . . . . Martial Activations . | . . . . . . . . . . . . . . Shielding Activations . | . . . . . . . . . . . . . . Robots Disrupted . | . . . . . . . . . . . . . . Combat Hostiles . | . . . . . . . . . . . . . . Robots Corrupted 2 | . . . . . . . . . . . 2 . . Combat Hostiles 1 | . . . . . . . . . . . 1 . . Parts Fried 6 | . . . 2 . . . . . . . 4 . . Impact Corruptions 1 | . . . 1 . . . . . . . . . . Robots Melted 6 | . . . . . . . . . 1 3 2 . . Combat Hostiles 6 | . . . . . . . . . 1 3 2 . . Parts Melted 83 | . . . 5 . 1 2 1 4 6 16 48 . . Heat Transferred 23342 | . 74 259 1110 . 1628 1882 333 481 3515 2923 11137 . . Parts Sabotaged . | . . . . . . . . . . . . . . Parts Stolen . | . . . . . . . . . . . . . . Parts Stripped . | . . . . . . . . . . . . . . Power Chain Reactions . | . . . . . . . . . . . . . . Alert | -11 -10 -10 -9 -9 -8 -7 -7 -6 -5 -4 -3 -2 -1 ------- Run | Yrd Mat Min Mat Min Mat Fac Sto Fac Fac Fac Res Res Acc Maximum Alert Level 2 | . . . . . 1 1 1 . 2 2 2 2 1 Low Security (%) 70 | 100 100 100 100 100 84 60 94 100 65 22 67 . 15 Level 1 18 | . . . . . 15 39 5 . 12 46 8 62 84 Level 2 11 | . . . . . . . . . 21 30 23 37 . Level 3 . | . . . . . . . . . . . . . . Level 4 . | . . . . . . . . . . . . . . Level 5 . | . . . . . . . . . . . . . . High Security . | . . . . . . . . . . . . . . Max Security . | . . . . . . . . . . . . . . Peak Influence 599 | 5 131 30 121 34 340 299 207 82 590 452 599 473 272 Initial 336 | . . 25 . 34 13 80 114 60 . 217 192 336 271 Average 158 | 1 51 4 54 34 114 165 152 18 175 328 223 371 229 Influence Increases 6121 | 10 412 40 261 . 689 722 238 178 1179 629 1450 257 56 Destroy 0b10 Robot/C 3360 | . 280 40 160 . 420 440 120 80 660 340 820 . . Destroy 0b10 Robot/NC 500 | 10 30 . 45 . 45 25 5 20 105 40 170 . 5 Destroy Leader 778 | . 56 . 32 . 94 134 30 36 142 84 170 . . Allied During Kill 29 | . . . . . . 4 22 3 . . . . . Successful Hack 176 | . . . 7 . 4 19 31 . 70 17 8 20 . Disable Machine 210 | . . . 15 . 15 . 30 30 60 30 15 . 15 Destroy Structure 318 | . 1 . 2 . 21 10 . 9 52 118 72 12 21 Partial Spotted 60 | . . . . . 15 . . . . . 15 30 . Lose Combat Pursuer 690 | . 45 . . . 75 90 . . 90 . 180 195 15 Influence Decreases 6034 | 10 346 106 171 56 545 648 356 312 736 706 1218 402 422 Entered New Map 1272 | . . 41 . 56 21 98 138 74 . 226 174 262 182 Time Decay 3734 | 10 326 65 171 . 374 530 198 218 478 470 634 110 150 Lost Part 460 | . . . . . . 20 . . 80 10 230 30 90 Lost Ally 70 | . . . . . . . 20 20 . . 30 . . Purge Threat 498 | . 20 . . . 150 . . . 178 . 150 . . Squads Dispatched 60 | . 1 . . . 5 8 2 3 8 6 20 5 2 Investigation 6 | . . . . . . 1 . . . . 3 2 . Extermination 20 | . . . . . . 4 1 2 3 2 6 1 1 Reinforcement 20 | . 1 . . . 2 . 1 1 5 2 5 2 1 Assault 2 | . . . . . . . . . . 2 . . . Garrison 12 | . . . . . 3 3 . . . . 6 . . Intercept . | . . . . . . . . . . . . . . Searches Triggered . | . . . . . . . . . . . . . . Construction Impeded 7 | . . . . . . . . . 2 2 2 . 1 Haulers Reinforced . | . . . . . . . . . . . . . . Active Scanning Responses . | . . . . . . . . . . . . . . Cargo Convoy Interrupts 2 | . . . . . . . . . 1 . 1 . . Stealth | -11 -10 -10 -9 -9 -8 -7 -7 -6 -5 -4 -3 -2 -1 --------- Run | Yrd Mat Min Mat Min Mat Fac Sto Fac Fac Fac Res Res Acc Distress Signals 24 | . 3 . 4 . 5 . 1 1 1 3 6 . . Communications Jammed . | . . . . . . . . . . . . . . Distress Signals . | . . . . . . . . . . . . . . Times Spotted 296 | . 27 5 13 . 37 25 7 8 54 20 70 24 6 Peak Tracking Total 14 | . 7 2 5 . 6 4 2 2 7 8 9 14 4 Tactical Retreats 29 | . 2 1 . . 2 3 . . 4 . 10 6 1 Traps | -11 -10 -10 -9 -9 -8 -7 -7 -6 -5 -4 -3 -2 -1 ------- Run | Yrd Mat Min Mat Min Mat Fac Sto Fac Fac Fac Res Res Acc Traps Triggered 13 | . 3 . . . . 2 . 1 1 . 6 . . Indirectly 1 | . . . . . . . . . . . 1 . . Trap Hack Attempts . | . . . . . . . . . . . . . . Triggered . | . . . . . . . . . . . . . . Disarmed 1 | . . . . . 1 . . . . . . . . Reprogrammed . | . . . . . . . . . . . . . . Reused . | . . . . . . . . . . . . . . Traps Extracted . | . . . . . . . . . . . . . . Installed . | . . . . . . . . . . . . . . Triggered . | . . . . . . . . . . . . . . Machines | -11 -10 -10 -9 -9 -8 -7 -7 -6 -5 -4 -3 -2 -1 ---------- Run | Yrd Mat Min Mat Min Mat Fac Sto Fac Fac Fac Res Res Acc Machines Disabled 14 | . . . 1 . 1 . 2 2 4 2 1 . 1 Max in Single Turn 1 | . . . 1 . 1 . 1 1 1 1 1 . 1 Garrison Access 2 | . . . . . . . . . . 1 . . 1 Machines Repaired . | . . . . . . . . . . . . . . Machines Dismantled . | . . . . . . . . . . . . . . Machines Sabotaged . | . . . . . . . . . . . . . . Overloaded Fab Kills . | . . . . . . . . . . . . . . Hacking | -11 -10 -10 -9 -9 -8 -7 -7 -6 -5 -4 -3 -2 -1 --------- Run | Yrd Mat Min Mat Min Mat Fac Sto Fac Fac Fac Res Res Acc Machines Accessed 64 | . 3 1 2 . 8 10 5 4 11 7 8 3 2 Terminals 46 | . 3 . 1 . 7 6 5 2 9 3 6 3 1 Fabricators 4 | . . . . . . 1 . 1 . 2 . . . Repair Stations 5 | . . . . . 1 1 . 1 1 1 . . . Recycling Units 1 | . . . 1 . . . . . . . . . . Scanalyzers 1 | . . . . . . . . . . 1 . . . Garrison Access 6 | . . . . . . 2 . . 1 . 2 . 1 Total Hacks 158 | . 8 1 7 . 25 17 14 5 33 16 20 9 3 Successful 60 | . 5 1 3 . 9 4 9 1 14 8 3 2 1 Failed 98 | . 3 . 4 . 16 13 5 4 19 8 17 7 2 Catastrophic 29 | . 1 . . . 3 7 2 1 5 1 8 1 . Database Lockouts . | . . . . . . . . . . . . . . Manual 35 | . 1 . 1 . 10 1 4 . 11 . 7 . . Terminals 118 | . 8 . 4 . 23 10 14 2 27 5 14 9 2 Fabricators 10 | . . . . . . 2 . 2 . 6 . . . Repair Stations 11 | . . . . . 2 2 . 1 4 2 . . . Recycling Units 3 | . . . 3 . . . . . . . . . . Scanalyzers 3 | . . . . . . . . . . 3 . . . Garrison Access 12 | . . . . . . 3 . . 2 . 6 . 1 Terminal Hacks 38 | . 4 1 1 . 6 2 7 . 11 2 2 2 . Part Schematic 2 | . . . . . . . . . 1 . 1 . . Prototype ID Bank 2 | . . . . . . . 2 . . . . . . Open Door 3 | . . 1 . . . . 2 . . . . . . Open DSF 1 | . . . . . . . . . . . . 1 . Level Access Points 2 | . . . . . . . . . 1 . . 1 . Branch Access Points 4 | . . . 1 . . . 1 . 1 1 . . . Emergency Access Points 2 | . . . . . 1 1 . . . . . . . Terminal Index 1 | . 1 . . . . . . . . . . . . Alert Level 2 | . . . . . 1 . 1 . . . . . . Unreport Threat 5 | . 1 . . . 1 . . . 2 . 1 . . Locate Traps 3 | . 1 . . . . . . . 2 . . . . Disarm Traps 1 | . . . . . 1 . . . . . . . . Recall Extermination 1 | . . . . . . . . . 1 . . . . Recall Reinforcements 1 | . . . . . . . . . 1 . . . . Hauler Manifests 4 | . . . . . 1 . 1 . 1 1 . . . Registered Components 3 | . 1 . . . . 1 . . 1 . . . . Zone Layout 1 | . . . . . 1 . . . . . . . . Fabricator Hacks 4 | . . . . . . 1 . 1 . 2 . . . Network Status 2 | . . . . . . . . 1 . 1 . . . Build 2 | . . . . . . 1 . . . 1 . . . Repair Station Hacks 8 | . . . . . 2 1 . . 3 2 . . . Scan Component 5 | . . . . . 1 1 . . 2 1 . . . Repair 3 | . . . . . 1 . . . 1 1 . . . Recycling Unit Hacks 2 | . . . 2 . . . . . . . . . . Report Inventory 1 | . . . 1 . . . . . . . . . . Retrieve Matter 1 | . . . 1 . . . . . . . . . . Scanalyzer 2 | . . . . . . . . . . 2 . . . Insert Component 1 | . . . . . . . . . . 1 . . . Analyze 1 | . . . . . . . . . . 1 . . . Garrison Access Hacks 1 | . . . . . . . . . . . . . 1 Seal Access 1 | . . . . . . . . . . . . . 1 Unauthorized Hacks 5 | . 1 . . . 1 . 2 . . . 1 . . Terminals 5 | . 1 . . . 1 . 2 . . . 1 . . Botnet 5 | . 1 . . . 1 . 2 . . . 1 . . Fabricators . | . . . . . . . . . . . . . . Repair Stations . | . . . . . . . . . . . . . . Recycling Units . | . . . . . . . . . . . . . . Scanalyzers . | . . . . . . . . . . . . . . Garrison Access . | . . . . . . . . . . . . . . Data Cores Recovered 2 | . . . . . 2 . . . . . . . . Used . | . . . . . . . . . . . . . . Hacking Detections 58 | . 3 . 2 . 7 10 3 4 11 6 8 3 1 Full Trace Events 3 | . . . . . . . . . . . 1 2 . Feedback Events . | . . . . . . . . . . . . . . Feedback Blocked . | . . . . . . . . . . . . . . Robot Schematics Acquired . | . . . . . . . . . . . . . . Robots Built 2 | . . . . . . 2 . . . . . . . Authchips . | . . . . . . . . . . . . . . Time 67 | . . . . . . 67 . . . . . . . Total Robot Build Rating 8 | . . . . . . 8 . . . . . . . Part Schematics Acquired 3 | . . . . . . . . . 1 1 1 . . Parts Built 1 | . . . . . . . . . . 1 . . . Authchips . | . . . . . . . . . . . . . . Time 128 | . . . . . . . . . . 128 . . . Total Part Build Rating 8 | . . . . . . . . . . 8 . . . Part Studies Acquired . | . . . . . . . . . . . . . . Parts Repaired 3 | . . . . . 1 . . . 1 1 . . . Time 126 | . . . . . 38 . . . 44 44 . . . Parts Recycled . | . . . . . . . . . . . . . . Recycled Matter . | . . . . . . . . . . . . . . Retrieved Matter 92 | . . . 92 . . . . . . . . . . Retrieved Components . | . . . . . . . . . . . . . . Parts Scanalyzed 1 | . . . . . . . . . . 1 . . . Part Schematics Acquired 1 | . . . . . . . . . . 1 . . . Parts Damaged . | . . . . . . . . . . . . . . Bothacking | -11 -10 -10 -9 -9 -8 -7 -7 -6 -5 -4 -3 -2 -1 ------------ Run | Yrd Mat Min Mat Min Mat Fac Sto Fac Fac Fac Res Res Acc Used RIF Installer . | . . . . . . . . . . . . . . Robots Hacked . | . . . . . . . . . . . . . . Non-combat . | . . . . . . . . . . . . . . Combat . | . . . . . . . . . . . . . . Robot Hacks Applied . | . . . . . . . . . . . . . . Relay Couplers Released 3 | . . . . . . . . . . 3 . . . Machine Destruction 3 | . . . . . . . . . . 3 . . . Fabnet Peak Effective % . | . . . . . . . . . . . . . . Robots Rewired . | . . . . . . . . . . . . . . Allies Hacked 1 | . . . . . . . 1 . . . . . . Hacks Repelled . | . . . . . . . . . . . . . . Allies | -11 -10 -10 -9 -9 -8 -7 -7 -6 -5 -4 -3 -2 -1 -------- Run | Yrd Mat Min Mat Min Mat Fac Sto Fac Fac Fac Res Res Acc Total Allies 3 | . . . . . . 2 1 . . . . . . Largest Group 3 | . . . . . . 2 3 2 . . . . . Highest-Rated Group 95 | . . . . . . 74 95 74 . . . . . Highest-Rated Ally 37 | . . . . . . 37 37 37 . . . . . Total Orders 2 | . . . . . . . . . . . 2 . . EXPLORE 2 | . . . . . . . . . . . 2 . . Ally Attacks 24 | . . . . . . 7 12 5 . . . . . Total Damage 364 | . . . . . . 33 226 105 . . . . . Kills 4 | . . . . . . . 2 2 . . . . . Allies Corrupted . | . . . . . . . . . . . . . . Allies Melted . | . . . . . . . . . . . . . . Intel | -11 -10 -10 -9 -9 -8 -7 -7 -6 -5 -4 -3 -2 -1 ------- Run | Yrd Mat Min Mat Min Mat Fac Sto Fac Fac Fac Res Res Acc Active Infowar (turns) 6519 | . . . . . 985 708 69 1083 1216 1023 1132 87 216 Sensors 2154 | . . . . . . . . . . 806 1132 . 216 Terrain 1040 | . . . . . . . . 29 924 . . 87 . Seismic 4067 | . . . . . 985 708 69 1083 1115 107 . . . Machine Analysis 410 | . . . . . . . . . . 410 . . . Robot Analysis Total . | . . . . . . . . . . . . . . Derelict Logs Recovered . | . . . . . . . . . . . . . . Drone Launches 4 | . . . . . . . . . . . 4 . . Drone Recoveries 1 | . . . . . . . . . . . 1 . . Exploration | -11 -10 -10 -9 -9 -8 -7 -7 -6 -5 -4 -3 -2 -1 ------------- Run | Yrd Mat Min Mat Min Mat Fac Sto Fac Fac Fac Res Res Acc Turns Passed 11861 | 129 977 434 427 10 1273 1496 402 1148 1615 1188 2227 227 308 Spaces Moved 7235 | 66 500 321 191 9 730 931 236 707 853 615 1178 437 461 Core 212 | 5 . . . . . . . . . . 189 . 18 Treads 219 | 61 153 . 5 . . . . . . . . . . Legs 246 | . 246 . . . . . . . . . . . . Wheels 5505 | . 101 321 186 9 730 931 236 707 853 615 816 . . Hover 14 | . . . . . . . . . . . . 3 11 Flight 1039 | . . . . . . . . . . . 173 434 432 Fastest Speed 39 | 50 105 120 120 120 120 120 145 145 125 123 40 39 45 Average Speed 118 | 151 132 120 123 120 120 129 145 145 129 137 117 41 45 Slowest Speed 330 | 160 160 120 240 120 120 145 145 145 210 160 330 70 106 Overloaded Moves . | . . . . . . . . . . . . . . Propulsion Burnouts . | . . . . . . . . . . . . . . Robots Hopped 8 | . . . . . . . . . . . . 6 2 Potential Cave-ins 5 | . . . . . . . . . . 2 3 . . Cave-ins Triggered 1 | . . . . . . . . . . . 1 . . Exploration Rate (%) 32 | 3 73 66 29 7 60 30 50 24 29 18 36 16 15 Regions Visited 13 Branch Regions 3 Pre-discovered Areas . | . . . . . . . . . . . . . . Known Exits Taken 4 | . . . 1 . . . . . 1 1 . 1 . Unknown Exits Taken 9 | 1 1 1 . 1 1 1 1 1 . . 1 . . Scrap Searched 1 | . . 1 . . . . . . . . . . . Spaces Dug 108 | . . . 1 . 16 6 . 7 14 27 28 4 5 Terrain Destroyed 196 | . . . 1 . 25 6 . 7 21 87 38 4 7 Melee 71 | . . . 1 . 9 6 . 7 14 7 27 . . Projectile 33 | . . . . . . . . . 7 4 11 4 7 AOE 92 | . . . . . 16 . . . . 76 . . . Terrain Rammed . | . . . . . . . . . . . . . . Walls Destroyed . | . . . . . . . . . . . . . . Machines Disabled . | . . . . . . . . . . . . . . Actions | -11 -10 -10 -9 -9 -8 -7 -7 -6 -5 -4 -3 -2 -1 --------- Run | Yrd Mat Min Mat Min Mat Fac Sto Fac Fac Fac Res Res Acc Total 9299 | 83 710 344 309 8 1006 1125 274 790 1102 858 1670 475 545 Wait 780 | . 49 7 45 . 142 66 7 16 50 146 184 4 64 Move 7207 | 65 499 320 190 8 729 930 235 706 852 614 1176 426 457 Hop 5 | . . . . . . . . . . . . 4 1 Pick Up 146 | 4 33 . 7 . 14 15 5 9 15 6 29 8 1 Fast Attach 98 | 6 11 . 4 . 5 9 4 2 9 7 31 8 2 Attach 53 | 1 2 . 3 . 2 3 . 2 10 2 18 5 5 Detach 26 | 1 6 . 1 . 1 3 . . 2 1 5 6 . Swap 202 | 1 10 . 10 . 23 27 3 12 38 31 47 . . Drop 176 | . 33 . 9 . 17 28 9 9 17 8 34 9 3 Fire 501 | 5 65 16 38 . 62 38 11 12 93 36 110 5 10 Melee 83 | . . . 2 . 11 6 . 7 16 7 34 . . Ram 4 | . . 1 . . . . . . . . 1 . 2 Kick . | . . . . . . . . . . . . . . Crush 2 | . 2 . . . . . . . . . . . . Escape Stasis 16 | . . . . . . . . 15 . . 1 . . Rewire . | . . . . . . . . . . . . . . Trap . | . . . . . . . . . . . . . . Miscellaneous . | . . . . . . . . . . . . . . Route ------- -11/Scrapyard -10/Materials (discovered 4 exits: *Mat x2 / *Min x2) -10/Mines -9/Materials (discovered 2 exits: *Min x2) -9/Mines (discovered 2 exits: *Mat / [*Zio]) -8/Materials -7/Factory -7/Storage (discovered 2 exits: *Fac / Rec) -6/Factory -5/Factory (discovered 6 exits: *Fac x4 / Upp x2) -4/Factory (discovered 4 exits: *Res / Upp x2 / Arm) -3/Research -2/Research (discovered 3 exits: *Acc x3) -1/Access To Epsilon Eridani History --------- Turn | Location | Event 36 | -11/Scrapyard | Discovered new exit (range 15) 130 | -11/Scrapyard | Entered Materials 262 | -10/Materials | Discovered new exit (range 8) 302 | -10/Materials | Build established: Mutant 302 | -10/Materials | Discovered new exit (range 16) 644 | -10/Materials | Discovered new exit (range 6) 875 | -10/Materials | Core integrity fell below 50% 996 | -10/Materials | Discovered new exit (range 14) 1107 | -10/Materials | Entered Mines 1132 | -10/Mines | Met a Derelict bent on vengeance 1155 | -10/Mines | Excavation squad dispatched 1155 | -10/Mines | A large section of the Mines collapsed 1509 | -10/Mines | Met a Derelict who couldn't figure out how to use a Trap Extractor 1523 | -10/Mines | Discovered new exit (range 14) 1541 | -10/Mines | Entered Materials 1541 | -9/Materials | Evolved 2 slots: Utility x1, Weapon x1 1876 | -9/Materials | Build established: Tank 1913 | -9/Materials | Identified exit to Mines 1968 | -9/Materials | Entered Mines 1968 | -9/Mines | Discovered new exit (range 9) 1969 | -9/Mines | A Derelict revealed a hidden shortcut to a safe place 1978 | -9/Mines | Entered Materials 1978 | -8/Materials | Evolved 2 slots: Utility x2 2282 | -8/Materials | Build established: Gunner 2797 | -8/Materials | Repaired Imp. Heat Sink 2938 | -8/Materials | Garrison activated, responded to threat 3219 | -8/Materials | Discovered new exit (range 8) 3251 | -8/Materials | Entered Factory 3251 | -7/Factory | Evolved 2 slots: Utility x1, Weapon x1 3434 | -7/Factory | Garrison activated, responded to threat 4475 | -7/Factory | Fabricated P-60 Hacker? 4515 | -7/Factory | Discovered new exit (range 12) 4747 | -7/Factory | Entered Storage 4747 | -7/Storage | Accompanied by 2 allies 4840 | -7/Storage | Identified exit to Recycling 4894 | -7/Storage | Hacker 4a assimilated hostile H-55 Commando 5121 | -7/Storage | Discovered new exit (range 5) 5149 | -7/Storage | Entered Factory 5149 | -6/Factory | Accompanied by 2 allies 5149 | -6/Factory | Evolved 2 slots: Power x1, Utility x1 6258 | -6/Factory | Discovered new exit (range 6) 6297 | -6/Factory | Entered another Factory area 6297 | -5/Factory | Evolved 2 slots: Propulsion x1, Utility x1 6859 | -5/Factory | Identified exit to Upper Caves 7137 | -5/Factory | Repaired Arm. Huge Wheel 7502 | -5/Factory | Cargo convoy interrupted 7686 | -5/Factory | Lost 4 parts (2u2w) 7721 | -5/Factory | Identified exit to Factory 7887 | -5/Factory | Found Prototype Reactor 7912 | -5/Factory | Entered another Factory area 7912 | -4/Factory | Evolved 2 slots: Power x1, Propulsion x1 7962 | -4/Factory | Build established: Scavenger-Gunner 7999 | -4/Factory | Repaired Arm. Huge Wheel 8079 | -4/Factory | Identified exit to Upper Caves 8079 | -4/Factory | Identified exit to Armory 8301 | -4/Factory | Destroyed 10 combat bots 8942 | -4/Factory | Discovered new exit (range 16) 8985 | -4/Factory | Fabricated Imp. Heavy Siege Treads (x1) 9083 | -4/Factory | Spotted B-86 Titan 9096 | -4/Factory | Identified exit to Research 9100 | -4/Factory | Entered Research 9100 | -3/Research | Evolved 2 slots: Utility x1, Weapon x1 9110 | -3/Research | Found Prototype Launcher 9110 | -3/Research | Identified Com. Tesla Bomb Launcher 9114 | -3/Research | Found Faulty Com. Tesla Bomb Launcher 9117 | -3/Research | Found Com. Tesla Bomb Launcher 9119 | -3/Research | Found Com. Tesla Bomb Launcher 9122 | -3/Research | Found Com. Tesla Bomb Launcher 9218 | -3/Research | Identified Singularity Reactor 9375 | -3/Research | Build established: Tank 9604 | -3/Research | Garrison activated, responded to threat 9876 | -3/Research | Found Prototype Hackware 10102 | -3/Research | Build established: Scavenger-Tank 10331 | -3/Research | Found Prototype Device 10331 | -3/Research | Identified Exp. Focal Shield 10468 | -3/Research | Cargo convoy interrupted 10568 | -3/Research | System corruption reached 10% 10954 | -3/Research | Lost 4 parts (3n1w) 11084 | -3/Research | Lost 7 parts (1p4u2w) 11089 | -3/Research | Spotted B-90 Cyclops 11121 | -3/Research | Released all parts (12) 11141 | -3/Research | Spotted B-86 Titan 11150 | -3/Research | Lost 7 parts (3n2u2w) 11242 | -3/Research | Core integrity fell below 50% 11261 | -3/Research | Crushed by falling debris 11312 | -3/Research | Discovered new exit (range 6) 11327 | -3/Research | Entered another Research area 11327 | -2/Research | Evolved 2 slots: Propulsion x2 11427 | -2/Research | Spotted B-90 Cyclops 11441 | -2/Research | Build established: Mutant 11449 | -2/Research | Identified exit to Access 11554 | -2/Research | Entered Access 11554 | -1/Access | Evolved 2 slots: Propulsion x1, Utility x1 11825 | -1/Access | Spotted B-99 Colossus 11826 | -1/Access | Spotted B-99 Colossus 11845 | -1/Access | Core integrity fell below 50% 11860 | -1/Access | Discovered new exit (range 4) 11861 | -1/Access | Core integrity fell below 20% 11862 | *** | Escaped! Last Messages --------------- 11853_ Acquired 3 matter. 11853_ Acquired 13 matter. 11853_ Knocked back. 11853_ Penetrated by Slug. 11853_ Slug penetrates Sealed Heavy Doors. 11853_ Imp. Corruption Screen destroyed. 11854_ Penetrated by Slug. 11856_ Knocked back. 11856_ Penetrated by Slug. 11856_ Slug penetrates Main Access Shell. 11856_ Penetrated by Slug. 11857_ Slug penetrates Sealed Heavy Doors. 11858_ Penetrated by Slug. 11858_ Hacking Suite destroyed. 11860_ Knocked back. 11860_ EXIT=FOUND 11860_ Penetrated by Slug. 11860_ Slug penetrates Main Access Shell. 11860_ Slug penetrates Sealed Heavy Doors. 11861_ Slug penetrates Main Access Shell. Map ----- +----------------------------------------------------+ | ?????????????????????????????# # # #? | | ?????????????????????????????# # # #? | | ??????????????????????######## ########## #? | | ??????????????????????# #? | | ??????????????????????# #? | | ??????????????????????# ] #? | | ??????????????????????# % % #? | | ??????????????????????#% "#########+###########? | | ??????????????????????# ##?????? ?????????? | | ???????????????????#### ####?? ???????? | | ???????????????????# % #?# ?????? | | ???????????????????# #?# #???? | | ???????????????????# #?# "" #???? | | ???????????????????# % #?# "" #???? | | ???????????????????# #?# """""" #???? | | ???????????????????# % #?# """""" #???? | | ???????????????????# %#?# "??? #???? | | ???????????????????#""""""" "#?# "???? #???? | | ??????????????????????????" %"??# ?????? #???? | | ??????????????????????????" "??# ?????????#???? | | ???????????????????#""""""" "#?###??????????????? | | ???????????????????# % #??????????????????? | | ???????????????????# """"" %#??????????????????? | | ??????????????????????" " #??????????????????? | | ??????????????????????" "" " #??????????????????? | | ??????????????????????" "@ " #??????????????????? | | ??????????????????????" " #??????????????????? | | ??????????????????????"""""" #??????????????????? | | ??????????????????????????? #??????????????????? | | ??????????????????????????? #??????????????????? | | ???????????????????????????""""??????????????????? | | ?????????????????????????????????????????????????? | | ?????????????????????????????????????????????????? | | ?????????????????????????????????????????????????? | | ?????????????????????????????????????????????????? | | ?????????????????????????????????????????????????? | | ?????????????????????????????????????????????????? | | ?????????????????????????????????????????????????? | | ?????????????????????????????????????????????????? | | ?????????????????????????????????????????????????? | | ?????????????????????????????????????????????????? | | ?????????????????????????????????????????????????? | | ?????????????????????????????????????????????????? | | ?????????????????????????????????????????????????? | | ?????????????????????????????????????????????????? | | ?????????????????????????????????????????????????? | | ?????????????????????????????????????????????????? | | ?????????????????????????????????????????????????? | | ?????????????????????????????????????????????????? | | ?????????????????????????????????????????????????? | +----------------------------------------------------+ Best States ------------- Heat Dissipation 123 Energy Generation 75 Energy Capacity 1100 Matter Stores 300 Matter Capacity 300 Sight Range 16 Robot Scan Range 16 Terrain Scan Range 20 Terrain Scan Density 310 Additional Mass Support 6 EM Shielding 2 Corruption Block 15 Armor Coverage 600 Phase Shifting 10 Evasion (%) 62 Targeting Accuracy 8 Launcher Accuracy 40 Target Analysis 11 Core Analysis 6 Recoil Reduction 2 Offensive Hacking 12 Item Schematics ----------------- Arm. Medium Treads | -5/Factory | Hacked Imp. Heavy Siege Treads | -4/Factory | Scanalyzed Quantum Rifle | -3/Research | Hacked Robot Schematics ------------------ None Fabricated ------------ P-60 Hacker | x2 | -7/Factory | Preloaded Imp. Heavy Siege Treads | x1 | -4/Factory | Preloaded Repaired ---------- Imp. Heat Sink | 55% | -8/Materials Arm. Huge Wheel | 36% | -5/Factory Arm. Huge Wheel | 58% | -4/Factory Studied --------- None Alien Tech Used ----------------- None Achievements -------------- Construction Begets Destruction DATA ERROR: Steam Global Achievement% Deductive Reasoning Fancy Inventory For Emergencies Only Heavy Suspicion I Have A Map? I Laugh At Your Crits Jackpot Junior Dev Live, Flee, And Rebuild Organ Harvest Overwhelming There's More Where That Came From Throw Away The Key Challenges ------------ None Game ------ Seed HelicalMetafiberSplitter Manual? 0 Play Time 03:50:03 Cumulative 251.3 hours Start 2026.04.12 @ 14:45:44 End 2026.04.15 @ 12:26:59 Sessions 8 Manual Loads 0 Difficulty Rogue Special Mode None Game No. 195 Rogue 195 Adventurer 0 Explorer 0 Win Type 0 Total 16 Types 16/0/0/0/0/0/0/0/0/0 Lore% 72 Gallery% 66 Achievement% 38 Wizard Run 0 Options --------- Layout 0 ASCII 0 Keyboard 1 Movement Numpad Keybinds 0 Fullscreen 2 Font 36/Smallcaps Map View 76x50 Zoom Use 0% Tactical HUD 1 Map Filters NONE Filters NONE Steam 1 RUN: 91f8d78d-c331-48fc-b5fa-39b3364da86f